bitfinex/quotes_BTCUSD_20240721
["timestamp","ask_amount","ask_price","bid_price","bid_amount"]
[1721604774542,0.00284,68166.0,68165.0,1.507851]
[1721604774829,0.00284,68166.0,68165.0,1.62968155]
[1721604775013,0.00284,68166.0,68165.0,1.507851]
[1721604775166,0.00284,68166.0,68165.0,1.62968158]
[1721604776233,0.00284,68166.0,68165.0,1.54548158]
[1721604778563,0.00084,68166.0,68165.0,1.5274818]
[1721604778798,0.00084,68166.0,68165.0,1.5384818]
[1721604778953,0.00084,68166.0,68165.0,1.5464818]
[1721604779727,0.00084,68166.0,68165.0,1.5884818]
[1721604779925,0.00084,68166.0,68165.0,1.5714818]
[1721604780987,0.00084,68166.0,68165.0,1.449651]
[1721604781183,0.00084,68166.0,68165.0,1.57148154]
[1721604781594,0.00084,68166.0,68165.0,1.57148089]
[1721604783126,0.00084,68166.0,68165.0,1.54848089]
[1721604783293,0.08154,68166.0,68165.0,1.54848089]
[1721604783942,0.08154,68166.0,68165.0,1.54848183]
[1721604786151,0.14704,68166.0,68165.0,0.43716483]
[1721604786356,0.14704,68166.0,68165.0,0.52156483]
[1721604786527,0.14704,68166.0,68165.0,0.546436]
[1721604787348,0.14704,68166.0,68165.0,0.399734]
[1721604787556,0.14704,68166.0,68165.0,0.546436]
[1721604788109,0.14704,68166.0,68165.0,0.399734]
[1721604788900,0.14704,68166.0,68165.0,0.546436]
[1721604789104,0.14704,68166.0,68165.0,1.133246]
[1721604789256,0.08154,68166.0,68165.0,1.25508878]
[1721604789458,0.08154,68166.0,68165.0,1.54849378]
[1721604791421,0.00084,68166.0,68165.0,1.89189878]
[1721604791641,0.00084,68166.0,68165.0,2.05589878]
[1721604791835,0.00084,68166.0,68165.0,2.15589878]
[1721604793423,0.00084,68166.0,68165.0,2.15588664]
[1721604793871,0.00084,68166.0,68165.0,2.15588762]
[1721604794333,0.00084,68166.0,68165.0,2.28238762]
[1721604795756,0.00084,68166.0,68165.0,1.58708262]
[1721604796352,0.00084,68166.0,68165.0,1.465251]
[1721604796598,0.00084,68166.0,68165.0,1.58708412]
[1721604798411,0.00084,68166.0,68165.0,1.56408412]
[1721604799789,0.00084,68166.0,68165.0,1.56408416]
[1721604802939,0.00084,68166.0,68165.0,1.56408605]
[1721604804974,0.07704,68166.0,68165.0,1.56408605]
[1721604805200,0.14144,68166.0,68165.0,1.56408605]
[1721604805400,0.14144,68166.0,68165.0,1.27068105]
[1721604805973,0.07704,68166.0,68165.0,1.56408605]
[1721604806597,0.07704,68166.0,68165.0,1.56408633]
[1721604807428,0.07704,68166.0,68165.0,1.55408633]
[1721604807813,0.07804,68166.0,68165.0,1.56308633]
[1721604808212,0.07804,68166.0,68165.0,0.97627633]
[1721604808439,0.14034,68166.0,68165.0,0.461036]
[1721604808641,0.14034,68166.0,68165.0,0.754441]
[1721604809096,0.13934,68166.0,68165.0,0.745441]
[1721604809425,0.14034,68166.0,68165.0,0.755441]
[1721604810123,0.13934,68166.0,68165.0,0.745441]
[1721604810520,0.14034,68166.0,68165.0,0.754441]
[1721604811910,0.14034,68166.0,68165.0,0.743441]
[1721604812195,0.14034,68166.0,68165.0,0.753441]
[1721604816401,0.14034,68166.0,68165.0,1.131246]
[1721604819258,0.13534,68166.0,68165.0,1.131246]
[1721604824538,0.07304,68166.0,68165.0,1.131246]
[1721604825380,0.07304,68166.0,68165.0,1.25308728]
[1721604826400,0.07304,68166.0,68165.0,1.131246]
[1721604830222,0.13834,68166.0,68165.0,0.544436]
[1721604830454,0.13834,68166.0,68165.0,0.397734]
[1721604830667,1.01886191,68166.0,68165.0,0.313334]
[1721604830868,1.09610046,68166.0,68165.0,0.313334]
[1721604831263,1.05207273,68166.0,68165.0,0.313334]
[1721604831502,1.09511029,68166.0,68165.0,0.304334]
[1721604831741,0.75767173,68166.0,68165.0,0.304334]
[1721604831935,0.80170462,68166.0,68165.0,0.304334]
[1721604832061,1.09510562,68166.0,68165.0,0.294334]
[1721604832675,1.09910562,68166.0,68165.0,0.294334]
[1721604833063,1.10210562,68166.0,68165.0,0.294334]
[1721604833265,1.09910562,68166.0,68165.0,0.294334]
[1721604833580,1.05507273,68166.0,68165.0,0.294334]
[1721604833778,1.09910562,68166.0,68165.0,0.294334]
[1721604834372,1.09909444,68166.0,68165.0,0.294334]
[1721604834591,1.05507273,68166.0,68165.0,0.294334]
[1721604834795,1.02186191,68166.0,68165.0,0.294334]
[1721604835013,1.01786191,68166.0,68165.0,0.294334]
[1721604835271,1.02286191,68166.0,68165.0,0.294334]
[1721604835445,1.02786191,68166.0,68165.0,0.294334]
[1721604835647,1.02286191,68166.0,68165.0,0.294334]
[1721604836026,1.02886191,68166.0,68165.0,0.294334]
[1721604836531,1.47339027,68166.0,68165.0,0.294334]
[1721604836739,1.57799972,68166.0,68165.0,0.294334]
[1721604837108,1.60001035,68166.0,68165.0,0.294334]
[1721604837509,1.48980165,68166.0,68165.0,0.294334]
[1721604837713,1.59980346,68166.0,68165.0,0.294334]
[1721604838538,1.48980165,68166.0,68165.0,0.294334]
[1721604839256,1.40540165,68166.0,68165.0,0.294334]
[1721604840671,1.40542694,68166.0,68165.0,0.294334]
[1721604841465,1.49337691,68166.0,68165.0,0.294334]
[1721604841708,1.88681491,68166.0,68165.0,0.294334]
[1721604842461,1.88081491,68166.0,68165.0,0.294334]
[1721604842648,1.87581491,68166.0,68165.0,0.294334]
[1721604842979,1.83936119,68166.0,68165.0,0.295334]
[1721604843199,1.88389684,68166.0,68165.0,0.296334]
[1721604843405,1.97889684,68166.0,68165.0,0.295334]
[1721604843603,1.97890221,68166.0,68165.0,0.295334]
[1721604844399,1.97890221,68166.0,68165.0,0.294334]
[1721604844400,1.97190221,68166.0,68165.0,0.294334]
[1721604844849,1.98390221,68166.0,68165.0,0.295334]
[1721604845284,1.98390221,68166.0,68165.0,0.294334]
[1721604845285,1.97190221,68166.0,68165.0,0.294334]
[1721604845489,1.99990221,68166.0,68165.0,0.296334]
[1721604845707,1.99990221,68166.0,68165.0,0.11016328]
[1721604845708,2.36749321,68166.0,68165.0,0.11016328]
[1721604845899,0.05,68156.0,68145.0,0.44186055]
[1721604846109,0.44023,68146.0,68145.0,0.44186055]
[1721604846239,1.31912391,68146.0,68145.0,0.000924]
[1721604847100,1.31912391,68146.0,68145.0,0.001924]
[1721604847297,1.61261091,68146.0,68145.0,0.001924]
[1721604847493,1.61261091,68146.0,68137.0,0.009207]
[1721604847494,0.0653,68140.0,68137.0,0.009207]
[1721604847735,0.05,68145.0,68137.0,0.009207]
[1721604847736,0.669581,68138.0,68137.0,0.009207]
[1721604847893,1.40364291,68138.0,68137.0,0.009207]
[1721604848203,1.31924291,68138.0,68137.0,0.009207]
[1721604849349,1.33324291,68138.0,68137.0,0.009207]
[1721604849550,1.71426554,68138.0,68137.0,0.009207]
[1721604849908,1.72726554,68138.0,68137.0,0.009207]
[1721604850709,1.84399868,68138.0,68137.0,0.009207]
[1721604851829,1.72726554,68138.0,68137.0,0.009207]
[1721604853669,1.49865196,68138.0,68137.0,0.009207]
[1721604854078,1.72726832,68138.0,68137.0,0.009207]
[1721604854714,1.49865196,68138.0,68137.0,0.009207]
[1721604855669,1.50718493,68138.0,68137.0,0.009207]
[1721604857923,1.62160829,68138.0,68137.0,0.009207]
[1721604858099,1.50718493,68138.0,68137.0,0.009207]
[1721604858296,1.73579994,68138.0,68137.0,0.009207]
[1721604868301,1.82029994,68138.0,68137.0,0.009207]
[1721604869982,2.21382094,68138.0,68137.0,0.009207]
[1721604870142,2.40301687,68138.0,68137.0,0.009207]
[1721604870633,2.43634309,68138.0,68137.0,0.009207]
[1721604870901,1.215914,68132.0,68131.0,0.004]
[1721604871039,1.77845797,68132.0,68131.0,0.004]
[1721604871245,2.07200497,68132.0,68131.0,0.004]
[1721604872523,2.12577243,68132.0,68131.0,0.005]
[1721604872637,2.18577243,68132.0,68131.0,0.005]
[1721604872851,2.13577243,68132.0,68131.0,0.005]
[1721604873081,2.13577243,68132.0,68124.0,0.009207]
[1721604873082,0.733942,68125.0,68124.0,0.009207]
[1721604873324,1.40198597,68125.0,68124.0,0.009207]
[1721604873537,1.69556297,68125.0,68124.0,0.009207]
[1721604874361,1.69856297,68125.0,68124.0,0.009207]
[1721604875958,1.70156297,68125.0,68124.0,0.009207]
[1721604876359,1.84852562,68125.0,68124.0,0.009207]
[1721604876555,1.86526852,68125.0,68124.0,0.009207]
[1721604876759,1.8914856,68125.0,68124.0,0.009207]
[1721604877260,2.31840892,68125.0,68124.0,0.009207]
[1721604877598,1.97500759,68125.0,68124.0,0.009207]
[1721604878003,1.78490929,68125.0,68124.0,0.009207]
[1721604878181,1.8280475,68125.0,68124.0,0.009207]
[1721604878861,1.8250475,68125.0,68124.0,0.009207]
[1721604879243,1.8330475,68125.0,68124.0,0.009207]
[1721604879455,1.8300475,68125.0,68124.0,0.009207]
[1721604879735,1.8380475,68125.0,68124.0,0.009207]
[1721604879909,2.32058715,68125.0,68124.0,0.009207]
[1721604880070,2.12701015,68125.0,68124.0,0.009207]
[1721604880269,2.14101015,68125.0,68124.0,0.009207]
[1721604880486,2.13301015,68125.0,68124.0,0.009207]
[1721604880683,2.10668944,68125.0,68124.0,0.009207]
[1721604880904,2.42703242,68125.0,68124.0,0.009207]
[1721604881102,2.44103242,68125.0,68124.0,0.009207]
[1721604881507,2.53782609,68125.0,68124.0,0.00393262]
[1721604881724,2.56082609,68125.0,68124.0,0.00393262]
[1721604883638,1.90909644,68125.0,68124.0,0.00393262]
[1721604883837,1.92945019,68125.0,68124.0,0.00393262]
[1721604884291,1.76915019,68125.0,68124.0,0.00393262]
[1721604884495,1.85365019,68125.0,68124.0,0.00393262]
[1721604884928,1.91615019,68125.0,68124.0,0.00393262]
[1721604885731,2.0099481,68125.0,68124.0,0.00393262]
[1721604887010,1.99293688,68125.0,68124.0,0.00393262]
[1721604887212,2.00973615,68125.0,68124.0,0.00393262]
[1721604887774,1.9159382,68125.0,68124.0,0.11393262]
[1721604888611,1.8534382,68125.0,68124.0,0.11393262]
[1721604890190,1.85332227,68125.0,68124.0,0.11393262]
[1721604891743,1.8972464,68125.0,68124.0,0.11393262]
[1721604892143,2.02638113,68125.0,68124.0,0.11393262]
[1721604892320,1.982457,68125.0,68124.0,0.11393262]
[1721604892488,1.9638432,68125.0,68124.0,0.11393262]
[1721604892699,2.0483432,68125.0,68124.0,0.11393262]
[1721604893301,2.04853232,68125.0,68124.0,0.11393262]
[1721604893549,1.9825751,68125.0,68124.0,0.11393262]
[1721604894414,2.0485302,68125.0,68124.0,0.11393262]
[1721604894614,1.9825751,68125.0,68124.0,0.11393262]
[1721604895015,1.98202983,68125.0,68124.0,0.11393262]
[1721604895659,2.06996916,68125.0,68124.0,0.11393262]
[1721604896691,1.98194294,68125.0,68124.0,0.11393262]
[1721604897046,2.10028157,68125.0,68124.0,0.11393262]
[1721604897250,2.17634187,68125.0,68124.0,0.11393262]
[1721604897467,2.28626462,68125.0,68124.0,0.11393262]
[1721604897669,2.28626462,68125.0,68124.0,0.22393262]
[1721604897941,1.99720714,68125.0,68124.0,0.22393262]
[1721604898080,2.10713173,68125.0,68124.0,0.22393262]
[1721604898289,1.96113173,68125.0,68124.0,0.22393262]
[1721604898554,1.85120714,68125.0,68124.0,0.22393262]
[1721604899257,1.98570714,68125.0,68124.0,0.22393262]
[1721604899461,2.14806979,68125.0,68124.0,0.22393262]
[1721604899762,2.13064561,68125.0,68124.0,0.22393262]
[1721604899968,2.14724236,68125.0,68124.0,0.22393262]
[1721604900915,2.18863869,68125.0,68124.0,0.22393262]
[1721604902203,2.16326881,68125.0,68124.0,0.22393262]
[1721604902440,2.18810332,68125.0,68124.0,0.22393262]
[1721604902608,2.18816449,68125.0,68124.0,0.22393262]
[1721604905416,2.14667194,68125.0,68124.0,0.22393262]
[1721604905589,2.24742007,68125.0,68124.0,0.22393262]
[1721604905808,2.14667194,68125.0,68124.0,0.22393262]
[1721604905982,2.24742026,68125.0,68124.0,0.22393262]
[1721604908334,2.24756347,68125.0,68124.0,0.22393262]
[1721604908512,2.14667194,68125.0,68124.0,0.22393262]
[1721604908713,2.24770758,68125.0,68124.0,0.22393262]
[1721604909119,2.24854758,68125.0,68124.0,0.22393262]
[1721604909360,2.18922814,68125.0,68124.0,0.22393262]
[1721604909553,2.24854598,68125.0,68124.0,0.22393262]
[1721604909709,2.18922814,68125.0,68124.0,0.22393262]
[1721604910113,2.24845188,68125.0,68124.0,0.22393262]
[1721604911876,2.24840266,68125.0,68124.0,0.22393262]
[1721604912682,2.29840266,68125.0,68124.0,0.22393262]
[1721604913947,2.59197966,68125.0,68124.0,0.22393262]
[1721604914170,2.72400803,68125.0,68124.0,0.22393262]
[1721604914477,2.59197966,68125.0,68124.0,0.22393262]
[1721604914679,2.61497966,68125.0,68124.0,0.22393262]
[1721604914857,2.51408894,68125.0,68124.0,0.22393262]
[1721604915052,2.61490564,68125.0,68124.0,0.22393262]
[1721604915454,2.58042274,68125.0,68124.0,0.22393262]
[1721604915603,2.94449974,68125.0,68124.0,0.22393262]
[1721604915799,2.93049974,68125.0,68124.0,0.22393262]
[1721604916206,2.94449974,68125.0,68124.0,0.22393262]
[1721604916448,2.90849974,68125.0,68124.0,0.22393262]
[1721604916625,2.94449974,68125.0,68124.0,0.22393262]
[1721604916841,2.95849974,68125.0,68124.0,0.22393262]
[1721604917425,2.94449974,68125.0,68124.0,0.22393262]
[1721604917944,2.84366594,68125.0,68124.0,0.22393262]
[1721604918182,2.9598726,68125.0,68124.0,0.22393262]
[1721604918543,2.53333295,68125.0,68124.0,0.22393262]
[1721604918951,2.40683295,68125.0,68124.0,0.22393262]
[1721604919149,2.37083295,68125.0,68124.0,0.22393262]
[1721604919387,1.36652729,68125.0,68124.0,0.28533262]
[1721604919854,1.36652729,68125.0,68124.0,0.22567574]
[1721604919855,2.28028129,68125.0,68124.0,0.22567574]
[1721604920076,2.14835766,68125.0,68124.0,0.22393262]
[1721604920279,1.64610429,68125.0,68124.0,0.22393262]
[1721604920528,1.79218144,68125.0,68124.0,0.28533262]
[1721604921039,1.8525474,68125.0,68124.0,0.28533262]
[1721604921318,1.46750531,68125.0,68124.0,0.36853262]
[1721604921723,1.48150531,68125.0,68124.0,0.36853262]
[1721604921953,1.45350531,68125.0,68124.0,0.36853262]
[1721604922158,1.43950531,68125.0,68124.0,0.36853262]
[1721604922360,1.45350531,68125.0,68124.0,0.36853262]
[1721604922598,1.46750531,68125.0,68124.0,0.36853262]
[1721604922971,1.45350531,68125.0,68124.0,0.36853262]
[1721604923202,1.46750531,68125.0,68124.0,0.36853262]
[1721604923406,1.17392831,68125.0,68124.0,0.36853262]
[1721604923607,1.46750531,68125.0,68124.0,0.36853262]
[1721604923807,1.17392831,68125.0,68124.0,0.36853262]
[1721604924025,1.42417229,68125.0,68124.0,0.36853262]
[1721604924246,1.46771433,68125.0,68124.0,0.36853262]
[1721604924697,1.31530528,68125.0,68124.0,0.36853262]
[1721604925194,1.81829068,68125.0,68124.0,0.22393262]
[1721604925704,1.95038673,68125.0,68124.0,0.22393262]
[1721604927201,1.95034936,68125.0,68124.0,0.22393262]
[1721604927580,1.93351699,68125.0,68124.0,0.22393262]
[1721604927880,1.9503397,68125.0,68124.0,0.22393262]
[1721604928781,1.7409313,68125.0,68124.0,0.22393262]
[1721604929927,1.74092308,68125.0,68124.0,0.22393262]
[1721604930374,1.60868589,68125.0,68124.0,0.22393262]
[1721604930606,1.74078811,68125.0,68124.0,0.22393262]
[1721604931247,1.60868589,68125.0,68124.0,0.22393262]
[1721604931515,1.74078811,68125.0,68124.0,0.22393262]
[1721604933639,1.74082855,68125.0,68124.0,0.22393262]
[1721604935348,1.60872458,68125.0,68124.0,0.28933262]
[1721604936075,1.31514758,68125.0,68124.0,0.28933262]
[1721604936329,1.31514758,68125.0,68124.0,0.37053262]
[1721604936554,1.29845356,68125.0,68124.0,0.37610029]
[1721604936764,1.3152775,68125.0,68124.0,0.37610029]
[1721604936987,1.31516901,68125.0,68124.0,0.37053262]
[1721604937195,1.31516901,68125.0,68124.0,0.37610029]
[1721604938583,1.16516901,68125.0,68124.0,0.37610029]
[1721604938742,1.31195701,68125.0,68124.0,0.37053262]
[1721604939145,1.31195701,68125.0,68124.0,0.37610029]
[1721604939347,1.26855124,68125.0,68124.0,0.22950029]
[1721604939556,1.31200719,68125.0,68124.0,0.22393262]
[1721604939757,1.60556443,68125.0,68124.0,0.22393262]
[1721604940158,1.78706443,68125.0,68124.0,0.22393262]
[1721604940343,2.09614143,68125.0,68124.0,0.22393262]
[1721604940852,1.80256443,68125.0,68124.0,0.22393262]
[1721604941464,2.15640654,68125.0,68124.0,0.22393262]
[1721604942845,2.21526371,68125.0,68124.0,0.22393262]
[1721604943023,2.16538368,68125.0,68124.0,0.22393262]
[1721604943201,2.21538368,68125.0,68124.0,0.22393262]
[1721604943365,2.16538368,68125.0,68124.0,0.22393262]
[1721604943564,2.21538368,68125.0,68124.0,0.22393262]
[1721604944226,2.33389275,68125.0,68124.0,0.22393262]
[1721604945451,2.35689275,68125.0,68124.0,0.22393262]
[1721604945660,2.34289275,68125.0,68124.0,0.22393262]
[1721604945878,2.22438368,68125.0,68124.0,0.22393262]
[1721604946120,2.10656241,68125.0,68124.0,0.22393262]
[1721604946318,2.20944934,68125.0,68124.0,0.22393262]
[1721604946560,2.22068859,68125.0,68124.0,0.22393262]
[1721604946734,2.22344942,68125.0,68124.0,0.22393262]
[1721604946939,2.23311638,68125.0,68124.0,0.22393262]
[1721604947141,2.54069338,68125.0,68124.0,0.15535246]
[1721604947341,2.31111638,68125.0,68124.0,0.15535246]
[1721604947848,2.60469338,68125.0,68124.0,0.15535246]
[1721604948202,2.31111638,68125.0,68124.0,0.15535246]
[1721604949222,2.5185672,68125.0,68124.0,0.15535246]
[1721604949448,2.60507915,68125.0,68124.0,0.15535246]
[1721604949592,2.31150215,68125.0,68124.0,0.15535246]
[1721604949791,2.60507915,68125.0,68124.0,0.15535246]
[1721604950203,2.31150215,68125.0,68124.0,0.15535246]
[1721604950629,2.60507915,68125.0,68124.0,0.15535246]
[1721604951105,2.69323915,68125.0,68124.0,0.08370246]
[1721604951903,2.69323915,68125.0,68124.0,0.0708643]
[1721604952322,2.65031873,68125.0,68124.0,0.0708643]
[1721604952581,2.69232635,68125.0,68124.0,0.0708643]
[1721604953839,2.69232635,68125.0,68124.0,0.0468643]
[1721604954151,2.37508239,68125.0,68124.0,0.0468643]
[1721604955410,2.66865939,68125.0,68124.0,0.0468643]
[1721604955607,2.35887342,68125.0,68124.0,0.0468643]
[1721604956004,2.65245042,68125.0,68124.0,0.0468643]
[1721604956588,1.077719,68112.0,68111.0,0.004]
[1721604956802,1.40335392,68112.0,68111.0,0.004]
[1721604957005,1.45335392,68112.0,68111.0,0.00957714]
[1721604957200,1.45335392,68112.0,68111.0,0.004]
[1721604957407,1.48670024,68112.0,68111.0,0.004]
[1721604957774,1.43670024,68112.0,68111.0,0.004]
[1721604958978,1.44470024,68112.0,68111.0,0.004]
[1721604959126,1.46144227,68112.0,68111.0,0.004]
[1721604959325,1.44770024,68112.0,68111.0,0.004]
[1721604959750,1.60666289,68112.0,68111.0,0.004]
[1721604960356,1.45970024,68112.0,68111.0,0.004]
[1721604961289,1.47646176,68112.0,68111.0,0.004]
[1721604961853,1.46446176,68112.0,68111.0,0.004]
[1721604962195,1.46746176,68112.0,68111.0,0.004]
[1721604962390,1.48146176,68112.0,68111.0,0.004]
[1721604962555,1.46746176,68112.0,68111.0,0.004]
[1721604962757,1.46746648,68112.0,68111.0,0.004]
[1721604963089,1.49546648,68112.0,68111.0,0.004]
[1721604963408,1.20183248,68112.0,68111.0,0.1388]
[1721604964462,0.90819848,68112.0,68111.0,0.1388]
[1721604964887,0.89143224,68112.0,68111.0,0.1388]
[1721604965098,0.66281723,68112.0,68111.0,0.1388]
[1721604965483,0.95645123,68112.0,68111.0,0.1443892]
[1721604965690,1.05254469,68112.0,68111.0,0.1443892]
[1721604965879,1.03578165,68112.0,68111.0,0.1388]
[1721604966083,1.03432506,68112.0,68111.0,0.1388]
[1721604966260,1.05103261,68112.0,68111.0,0.1388]
[1721604966839,0.75739861,68112.0,68111.0,0.1388]
[1721604967037,0.75739861,68112.0,68111.0,0.1443892]
[1721604967286,1.05103261,68112.0,68111.0,0.1443892]
[1721604967487,0.75739861,68112.0,68111.0,0.1443892]
[1721604967695,1.07665514,68112.0,68111.0,0.1388]
[1721604968023,0.78302114,68112.0,68111.0,0.1388]
[1721604968461,0.78302114,68112.0,68111.0,0.1443892]
[1721604968666,1.07665514,68112.0,68111.0,0.1443892]
[1721604968861,1.05994759,68112.0,68111.0,0.1388]
[1721604969064,1.1426751,68112.0,68111.0,0.1388]
[1721604972062,1.1286751,68112.0,68111.0,0.1388]
[1721604972260,1.10066177,68112.0,68111.0,0.1388]
[1721604972462,1.11466177,68112.0,68111.0,0.1388]
[1721604972676,1.12840715,68112.0,68111.0,0.1388]
[1721604972873,1.11440715,68112.0,68111.0,0.1388]
[1721604973241,0.83477315,68112.0,68111.0,0.1388]
[1721604973640,0.39432215,68112.0,68111.0,0.1388]
[1721604973839,0.29443921,68112.0,68111.0,0.14438491]
[1721604974307,0.42456643,68112.0,68111.0,0.14530891]
[1721604974506,0.71820043,68112.0,68111.0,0.14530891]
[1721604974881,0.76861215,68112.0,68111.0,0.139724]
[1721604975055,0.83463757,68112.0,68111.0,0.139724]
[1721604975251,0.80927266,68112.0,68111.0,0.139724]
[1721604975496,0.82089892,68112.0,68111.0,0.139724]
[1721604975754,1.11353292,68112.0,68111.0,0.139724]
[1721604975951,0.81989892,68112.0,68111.0,0.139724]
[1721604976155,0.83189892,68112.0,68111.0,0.139724]
[1721604976774,0.76587241,68112.0,68111.0,0.139724]
[1721604977199,0.83189892,68112.0,68111.0,0.139724]
[1721604977397,1.05950641,68112.0,68111.0,0.000924]
[1721604977598,1.29450441,68112.0,68111.0,0.000924]
[1721604977801,1.14754176,68112.0,68111.0,0.000924]
[1721604978442,1.39884523,68112.0,68111.0,0.000924]
[1721604978680,1.35264538,68112.0,68111.0,0.000924]
[1721604978864,1.44069439,68112.0,68111.0,0.000924]
[1721604979064,1.35264538,68112.0,68111.0,0.000924]
[1721604979470,1.41868199,68112.0,68111.0,0.000924]
[1721604980307,1.14706039,68112.0,68111.0,0.000924]
[1721604981661,0.83677011,68112.0,68111.0,0.143424]
[1721604981862,0.76538092,68112.0,68111.0,0.143424]
[1721604982066,0.47174692,68112.0,68111.0,0.143424]
[1721604982334,0.27457663,68112.0,68111.0,0.14901024]
[1721604982735,0.20536623,68112.0,68111.0,0.143424]
[1721604982938,0.20536623,68112.0,68111.0,0.14901024]
[1721604983302,0.42174876,68112.0,68111.0,0.14901024]
[1721604983721,0.24761409,68112.0,68111.0,0.14901024]
[1721604983897,0.27493861,68112.0,68111.0,0.143424]
[1721604984099,0.42175561,68112.0,68111.0,0.14901024]
[1721604984894,0.42177544,68112.0,68111.0,0.14901024]
[1721604985312,0.46045759,68112.0,68111.0,0.14901024]
[1721604985715,0.46045759,68112.0,68111.0,0.143424]
[1721604985911,0.83082532,68112.0,68111.0,0.143424]
[1721604986111,0.75409159,68112.0,68111.0,0.143424]
[1721604986406,0.68803701,68112.0,68111.0,0.143424]
[1721604986609,1.05858421,68112.0,68111.0,0.062124]
[1721604986968,1.14665699,68112.0,68111.0,0.062124]
[1721604987232,1.14665699,68112.0,68111.0,0.143324]
[1721604987435,1.05858421,68112.0,68111.0,0.143324]
[1721604987917,1.01636443,68112.0,68111.0,0.143324]
[1721604988119,1.0583567,68112.0,68111.0,0.143324]
[1721604988258,1.14644532,68112.0,68111.0,0.143324]
[1721604988861,1.0583567,68112.0,68111.0,0.062124]
[1721604989489,1.0583567,68112.0,68111.0,0.000924]
[1721604989911,1.14644731,68112.0,68111.0,0.000924]
[1721604990779,1.0583567,68112.0,68111.0,0.000924]
[1721604991154,1.03307645,68112.0,68111.0,0.000924]
[1721604991511,1.05862195,68112.0,68111.0,0.000924]
[1721604991917,1.14671269,68112.0,68111.0,0.000924]
[1721604992085,1.13371269,68112.0,68111.0,0.000924]
[1721604992513,1.14771269,68112.0,68111.0,0.000924]
[1721604992848,1.04562195,68112.0,68111.0,0.000924]
[1721604993055,1.05862195,68112.0,68111.0,0.000924]
[1721604993792,1.14671321,68112.0,68111.0,0.000924]
[1721604994029,1.05862195,68112.0,68111.0,0.000924]
[1721604994184,1.14671321,68112.0,68111.0,0.000924]
[1721604994384,1.01636443,68112.0,68111.0,0.000924]
[1721604994585,1.14683005,68112.0,68111.0,0.000924]
[1721604994810,1.01636443,68112.0,68111.0,0.000924]
[1721604995017,1.05873339,68112.0,68111.0,0.000924]
[1721604995596,1.14682677,68112.0,68111.0,0.000924]
[1721604997678,1.14680339,68112.0,68111.0,0.000924]
[1721604998358,1.05871001,68112.0,68111.0,0.000924]
[1721604998814,1.14683293,68112.0,68111.0,0.000924]
[1721604998949,1.05871001,68112.0,68111.0,0.000924]
[1721604999149,1.05871001,68112.0,68111.0,0.146124]
[1721605000277,1.16882674,68112.0,68111.0,0.146124]
[1721605000680,1.01636443,68112.0,68111.0,0.146124]
[1721605000880,1.16923062,68112.0,68111.0,0.146124]
[1721605002959,1.16923062,68112.0,68111.0,0.066824]
[1721605003310,1.16923062,68112.0,68111.0,0.000924]
[1721605004059,1.16925978,68112.0,68111.0,0.000924]
[1721605004429,1.05907065,68112.0,68111.0,0.000924]
[1721605005403,1.16925978,68112.0,68111.0,0.000924]
[1721605005726,1.05907065,68112.0,68111.0,0.000924]
[1721605006478,1.16926411,68112.0,68111.0,0.000924]
[1721605006658,1.05907065,68112.0,68111.0,0.000924]
[1721605007066,1.05991065,68112.0,68111.0,0.000924]
[1721605007288,1.05966092,68112.0,68111.0,0.000924]
[1721605007722,1.01720443,68112.0,68111.0,0.000924]
[1721605007894,1.05966092,68112.0,68111.0,0.000924]
[1721605009179,1.04666092,68112.0,68111.0,0.000924]
[1721605010363,1.04672677,68112.0,68111.0,0.000924]
[1721605010564,1.06072677,68112.0,68111.0,0.000924]
[1721605010988,1.42018844,68112.0,68111.0,0.000924]
[1721605011188,1.43318844,68112.0,68111.0,0.000924]
[1721605011866,1.50958844,68112.0,68111.0,0.000924]
[1721605012095,1.42976077,68112.0,68111.0,0.000924]
[1721605012265,1.49526077,68112.0,68111.0,0.000924]
[1721605013792,1.49525431,68112.0,68111.0,0.000924]
[1721605014476,1.48325431,68112.0,68111.0,0.000924]
[1721605014695,1.47025431,68112.0,68111.0,0.000924]
[1721605014922,1.49825431,68112.0,68111.0,0.000924]
[1721605015626,1.48425431,68112.0,68111.0,0.000924]
[1721605015860,1.47476705,68112.0,68111.0,0.000924]
[1721605016086,1.46076705,68112.0,68111.0,0.000924]
[1721605016818,1.44403306,68112.0,68111.0,0.000924]
[1721605017042,1.47378534,68112.0,68111.0,0.000924]
[1721605017681,1.46078534,68112.0,68111.0,0.000924]
[1721605017893,1.47278534,68112.0,68111.0,0.000924]
[1721605018644,1.47278534,68112.0,68111.0,0.061324]
[1721605018645,1.33088534,68112.0,68111.0,0.061324]
[1721605018847,1.03725134,68112.0,68111.0,0.061324]
[1721605020053,1.03760539,68112.0,68111.0,0.061324]
[1721605020494,1.03740752,68112.0,68111.0,0.061324]
[1721605021463,1.02440752,68112.0,68111.0,0.061324]
[1721605021839,1.03840752,68112.0,68111.0,0.061324]
[1721605022542,1.03829672,68112.0,68111.0,0.061324]
[1721605022916,0.98171717,68112.0,68111.0,0.061324]
[1721605023127,1.02429673,68112.0,68111.0,0.061324]
[1721605023395,1.01146606,68112.0,68111.0,0.061324]
[1721605023583,1.03729342,68112.0,68111.0,0.061324]
[1721605023801,1.14749378,68112.0,68111.0,0.061324]
[1721605025386,1.03729342,68112.0,68111.0,0.061324]
[1721605025810,1.03749618,68112.0,68111.0,0.061324]
[1721605026014,1.14769726,68112.0,68111.0,0.061324]
[1721605026437,1.03749618,68112.0,68111.0,0.061324]
[1721605026642,1.12565947,68112.0,68111.0,0.061324]
[1721605026853,1.03749618,68112.0,68111.0,0.061324]
[1721605029032,1.03777593,68112.0,68111.0,0.061324]
[1721605029232,1.1479804,68112.0,68111.0,0.061324]
[1721605030576,0.8543464,68112.0,68111.0,0.061324]
[1721605030809,0.20620623,68112.0,68111.0,0.140524]
[1721605031042,0.02584,68112.0,68111.0,0.58656623]
[1721605031260,0.02584,68112.0,68111.0,1.29577878]
[1721605031510,0.01284,68112.0,68111.0,1.34577878]
[1721605031736,0.01284,68112.0,68111.0,1.31877878]
[1721605031970,0.02584,68112.0,68111.0,1.36877878]
[1721605032163,0.02584,68112.0,68111.0,1.36876851]
[1721605032465,0.01284,68112.0,68111.0,1.36876851]
[1721605032664,0.01284,68112.0,68111.0,1.3687703]
[1721605032665,0.00184,68112.0,68111.0,1.3687703]
[1721605032878,0.01484,68112.0,68111.0,1.3687703]
[1721605033136,0.01384,68112.0,68111.0,1.3687703]
[1721605033748,0.00084,68112.0,68111.0,1.3687703]